Cogmind - Beta 14 @@@ ROGUE MODE // 2025.01.19 @ 01:05:41 Player: Adam_the_Great Result: Core destroyed Performance ------------- Evolutions (0) 0 Regions Visited (4) 800 Robots Destroyed (19) 95 Value Destroyed (504) 504 Prototype IDs (23) 460 Alien Tech Used (0) 0 Bonus (300) 300 TOTAL SCORE: 2159 Bonus ------- Aligned with FarCom 300 Cogmind --------- Core Integrity 0/250 Matter 296/300 Energy 100/100 System Corruption 3% Temperature Cool (0) Movement Core (100) Ox1 Location -9/Mines Parts ------- > --- POWER (1) -------- (None) > --- PROPULSION (2) --- (None) > --- UTILITY (2) ------ Heat Sink Small Storage Unit > --- WEAPON (2) ------- (None) > --- INVENTORY (8) ---- Ion Engine Ion Engine XL Autogun Array Peak State ------------ > --- POWER ------------ Ion Engine > --- PROPULSION ------- Aluminum Leg > --- UTILITY ---------- Heat Sink Small Storage Unit > --- WEAPON ----------- Light Assault Rifle Light Assault Rifle > --- INVENTORY -------- Ion Engine Ion Engine XL Autogun Array [Rating: 9] Favorites ----------- Power Ion Engine Engine Ion Engine Propulsion Light Treads Treads Light Treads Leg Aluminum Leg Utility Heat Sink Device Heat Sink Storage Small Storage Unit Weapon Light Assault Rifle Energy Cannon Beam Cannon Ballistic Gun Light Assault Rifle Build | -11 -10 -10 -10 -9 ------- Run | Yrd Mat Min Exi Min Slots Evolved . | . . . . . Power . | . . . . . Propulsion . | . . . . . Utility . | . . . . . Weapon . | . . . . . Parts Attached 18 | 6 7 5 . . Power 4 | 1 1 2 . . Engine 4 | 1 1 2 . . Core . | . . . . . Reactor . | . . . . . Propulsion 4 | 2 1 1 . . Treads 2 | 2 . . . . Leg 2 | . 1 1 . . Wheel . | . . . . . Hover . | . . . . . Flight . | . . . . . Utility 4 | 1 3 . . . Device 1 | . 1 . . . Storage 3 | 1 2 . . . Processor . | . . . . . Hackware . | . . . . . Protection . | . . . . . Artifact . | . . . . . Weapon 6 | 2 2 2 . . Energy Gun . | . . . . . Energy Cannon 1 | . 1 . . . Ballistic Gun 5 | 2 1 2 . . Ballistic Cannon . | . . . . . Launcher . | . . . . . Special Weapon . | . . . . . Impact Weapon . | . . . . . Slashing Weapon . | . . . . . Piercing Weapon . | . . . . . Special Melee Weapon . | . . . . . Unidentified Prototypes . | . . . . . Parts Lost 12 | . 5 5 . 2 Power 3 | . 1 2 . . Propulsion 3 | . 2 1 . . Utility . | . . . . . Weapon 6 | . 2 2 . 2 Highest Loss Streak 4 | . 3 4 . 2 To Critical Strikes . | . . . . . Average Slot Usage (%) 85 | . 88 75 85 84 Engine 13 | . 14 9 14 13 Treads 9 | . 21 . . . Leg 8 | . 2 9 14 13 Device 10 | . 6 14 14 14 Storage 14 | . 14 14 14 14 Energy Cannon 3 | . 6 4 . . Ballistic Gun 24 | . 21 23 28 28 Peak Build Rating 9 | 6 7 6 9 9 Average Rating 7 | 4 6 5 6 8 On Entrance 5 | . 6 6 6 9 Naked Turns . | . . . . . Heaviest Build 31 | 14 31 13 13 13 Greatest Support 40 | 40 40 10 10 10 Greatest Overweight (x) 4 | . 2 4 1 1 Average Overweight (x) . | . . 1 1 1 Largest Inventory Capacity 15 | 8 15 8 8 8 Average Capacity 10 | 6 14 8 8 8 Most Carried 7 | 3 7 6 6 6 Average Carried 4 | 1 5 3 3 6 Final Capacity 8 | 8 8 8 8 8 Final Carried 6 | 2 4 2 6 6 Class Distribution -------------------- 50% | Scavenger-Mutant 49% | Mutant Dominant Class ---------------- Mutant | -10/Materials Mutant | -10/Mines Scavenger-Mutant | -10/Exiles Scavenger-Mutant | -9/Mines Resources | -11 -10 -10 -10 -9 ----------- Run | Yrd Mat Min Exi Min Matter Collected 599 | 196 346 57 . . Remotely . | . . . . . Salvage Created 604 | . 488 116 . . Parts 36 | . 30 6 . . Haulers Intercepted . | . . . . . Recyclers Shooed . | . . . . . Parts Field Recycled . | . . . . . Retrieved Matter . | . . . . . Parts Self-Destructed . | . . . . . Prevented . | . . . . . Kills | -11 -10 -10 -10 -9 ------- Run | Yrd Mat Min Exi Min Combat Hostiles Destroyed 19 | . 14 5 . . Guns 12 | . 9 3 . . Cannons 7 | . 5 2 . . Classes Destroyed 2 | . 2 . . . Swarmer 7 | . 4 3 . . Grunt 12 | . 10 2 . . Best Kill Streak 4 | . 4 3 . . Combat Bots Only 4 | . 4 3 . . Max Kills in Single Turn 1 | . 1 1 . . Gunslinging . | . . . . . Exploded . | . . . . . Melee . | . . . . . Uniques/NPCs Destroyed . | . . . . . Combat | -11 -10 -10 -10 -9 -------- Run | Yrd Mat Min Exi Min Hostile Shots Fired 149 | . 85 53 . 11 Missed 37 | . 21 12 . 4 Damage Taken 1524 | . 804 488 . 232 Core 253 | . 100 82 . 71 Absorbed by Shields . | . . . . . Regen/Repaired (Parts) 44 | . 44 . . . Core Remaining (%) 100 | 100 . . . . Volleys Fired 79 | . 50 22 . 7 Largest 2 | . 2 2 . 2 Hottest 80 | . 80 80 . 40 Shots Fired 155 | . 98 43 . 14 Gun 124 | . 82 28 . 14 Cannon 31 | . 16 15 . . Launcher . | . . . . . Special . | . . . . . Kinetic 124 | . 82 28 . 14 Thermal 31 | . 16 15 . . Explosive . | . . . . . Electromagnetic . | . . . . . Robot Hit Streak 11 | . 8 11 . 4 Robot Miss Streak 4 | . 4 2 . 1 Penetration Max . | . . . . . Secondary Targets . | . . . . . Shots Hit Robots 108 | . 70 28 . 10 Core Hits 33 | . 23 9 . 1 Critical Kills . | . . . . . Critical Parts Destroyed . | . . . . . Critical Strikes . | . . . . . Melee Attacks . | . . . . . Impact . | . . . . . Slashing . | . . . . . Piercing . | . . . . . Sneak Attacks . | . . . . . Combat Hostiles . | . . . . . Follow-up Attacks . | . . . . . Damage Inflicted 1305 | . 915 310 . 80 Guns 954 | . 706 170 . 78 Cannons 349 | . 209 140 . . Explosions . | . . . . . Melee . | . . . . . Ramming 2 | . . . . 2 Kinetic 954 | . 706 170 . 78 Thermal 349 | . 209 140 . . Explosive . | . . . . . Electromagnetic . | . . . . . Impact . | . . . . . Slashing . | . . . . . Piercing . | . . . . . Highest Corruption . | . . . . . Average Corruption . | . . . . . Corruption Purged . | . . . . . Corruption Blocked . | . . . . . Overload Shots . | . . . . . Overflow Damage . | . . . . . Projectiles . | . . . . . Explosions . | . . . . . Melee . | . . . . . Knockbacks 1 | . . . . 1 Impact 1 | . . . . 1 Kinetic . | . . . . . Secondary . | . . . . . Self-Inflicted Damage 1 | . . . . 1 Shots . | . . . . . Rammed 1 | . . . . 1 Targets Rammed 1 | . . . . 1 Kicked . | . . . . . Crushed . | . . . . . Highest Temperature 126 | . 126 60 . . Average Temperature 31 | . 37 23 . . Received Heat Transfer 585 | . 360 225 . . Siege Activations . | . . . . . Robots Corrupted . | . . . . . Combat Hostiles . | . . . . . Parts Fried . | . . . . . Impact Corruptions . | . . . . . Robots Melted . | . . . . . Combat Hostiles . | . . . . . Parts Melted 1 | . 1 . . . Heat Transferred 740 | . 444 296 . . Parts Sabotaged . | . . . . . Parts Stolen . | . . . . . Parts Stripped . | . . . . . Power Chain Reactions . | . . . . . Alert | -11 -10 -10 -10 -9 ------- Run | Yrd Mat Min Exi Min Peak Influence 195 | . 195 117 . . Initial 47 | . . 47 . . Average 33 | . 48 105 . . Maximum Alert Level . | . . . . . Low Security (%) 100 | 100 100 100 . 100 Level 1 . | . . . . . Level 2 . | . . . . . Level 3 . | . . . . . Level 4 . | . . . . . Level 5 . | . . . . . High Security . | . . . . . Max Security . | . . . . . Squads Dispatched 3 | . 3 . . . Investigation 1 | . 1 . . . Extermination . | . . . . . Reinforcement 2 | . 2 . . . Assault . | . . . . . Garrison . | . . . . . Intercept . | . . . . . Searches Triggered . | . . . . . Construction Impeded . | . . . . . Haulers Reinforced . | . . . . . Active Scanning Responses . | . . . . . Cargo Convoy Interrupts . | . . . . . Stealth | -11 -10 -10 -10 -9 --------- Run | Yrd Mat Min Exi Min Distress Signals 3 | . 3 . . . Communications Jammed . | . . . . . Distress Signals . | . . . . . Times Spotted 35 | . 28 5 . 2 Peak Tracking Total 6 | . 6 4 . 2 Tactical Retreats 3 | . 3 . . . Traps | -11 -10 -10 -10 -9 ------- Run | Yrd Mat Min Exi Min Traps Triggered 1 | . 1 . . . Indirectly . | . . . . . Trap Hack Attempts . | . . . . . Triggered . | . . . . . Disarmed . | . . . . . Reprogrammed . | . . . . . Reused . | . . . . . Traps Extracted . | . . . . . Installed . | . . . . . Triggered . | . . . . . Machines | -11 -10 -10 -10 -9 ---------- Run | Yrd Mat Min Exi Min Machines Disabled . | . . . . . Max in Single Turn . | . . . . . Machines Repaired . | . . . . . Machines Dismantled . | . . . . . Machines Sabotaged . | . . . . . Overloaded Fab Kills . | . . . . . Hacking | -11 -10 -10 -10 -9 --------- Run | Yrd Mat Min Exi Min Machines Accessed 10 | . 5 . 5 . Terminals 4 | . 4 . . . Fabricators . | . . . . . Repair Stations 1 | . 1 . . . Recycling Units . | . . . . . Scanalyzers . | . . . . . Garrison Access . | . . . . . Total Hacks 63 | . 13 . 50 . Successful 58 | . 8 . 50 . Failed 5 | . 5 . . . Catastrophic 2 | . 2 . . . Database Lockouts . | . . . . . Manual 1 | . . . 1 . Terminals 11 | . 11 . . . Fabricators . | . . . . . Repair Stations 2 | . 2 . . . Recycling Units . | . . . . . Scanalyzers . | . . . . . Garrison Access . | . . . . . Terminal Hacks 56 | . 6 . 50 . Record 53 | . 4 . 49 . Robot Analysis 1 | . 1 . . . Locate Traps 1 | . 1 . . . Derelict Proto ID Bank 1 | . . . 1 . Fabricator Hacks . | . . . . . Repair Station Hacks 2 | . 2 . . . Scan Component 1 | . 1 . . . Repair 1 | . 1 . . . Recycling Unit Hacks . | . . . . . Scanalyzer . | . . . . . Garrison Access Hacks . | . . . . . Unauthorized Hacks . | . . . . . Terminals . | . . . . . Fabricators . | . . . . . Repair Stations . | . . . . . Recycling Units . | . . . . . Scanalyzers . | . . . . . Garrison Access . | . . . . . Data Cores Recovered . | . . . . . Used . | . . . . . Hacking Detections 4 | . 4 . . . Full Trace Events 1 | . 1 . . . Feedback Events . | . . . . . Feedback Blocked . | . . . . . Robot Schematics Acquired . | . . . . . Robots Built . | . . . . . Authchips . | . . . . . Time . | . . . . . Total Robot Build Rating . | . . . . . Part Schematics Acquired . | . . . . . Parts Built . | . . . . . Authchips . | . . . . . Time . | . . . . . Total Part Build Rating . | . . . . . Parts Repaired 1 | . 1 . . . Time 26 | . 26 . . . Parts Recycled . | . . . . . Recycled Matter . | . . . . . Retrieved Matter . | . . . . . Retrieved Components . | . . . . . Parts Scanalyzed . | . . . . . Part Schematics Acquired . | . . . . . Parts Damaged . | . . . . . Bothacking | -11 -10 -10 -10 -9 ------------ Run | Yrd Mat Min Exi Min Used RIF Installer . | . . . . . Robots Hacked . | . . . . . Non-combat . | . . . . . Combat . | . . . . . Robot Hacks Applied . | . . . . . Relay Couplers Released . | . . . . . Fabnet Peak Effective % . | . . . . . Robots Rewired . | . . . . . Allies Hacked . | . . . . . Hacks Repelled . | . . . . . Allies | -11 -10 -10 -10 -9 -------- Run | Yrd Mat Min Exi Min Total Allies . | . . . . . Largest Group . | . . . . . Highest-Rated Group . | . . . . . Highest-Rated Ally . | . . . . . Total Orders . | . . . . . Ally Attacks . | . . . . . Total Damage . | . . . . . Kills . | . . . . . Allies Corrupted . | . . . . . Allies Melted . | . . . . . Intel | -11 -10 -10 -10 -9 ------- Run | Yrd Mat Min Exi Min Robot Analysis Total 1 | . 1 . . . Derelict Logs Recovered 1 | . . . . 1 Drone Launches . | . . . . . Drone Recoveries . | . . . . . Exploration | -11 -10 -10 -10 -9 ------------- Run | Yrd Mat Min Exi Min Turns Passed 3167 | 64 1405 151 699 848 Spaces Moved 1459 | 39 581 47 367 425 Core 12 | 8 . 4 . . Treads 490 | 31 459 . . . Legs 957 | . 122 43 367 425 Wheels . | . . . . . Hover . | . . . . . Flight . | . . . . . Fastest Speed 50 | 50 160 120 190 190 Average Speed 181 | 137 173 180 190 190 Slowest Speed 260 | 160 260 250 190 190 Overloaded Moves . | . . . . . Propulsion Burnouts . | . . . . . Robots Hopped . | . . . . . Cave-ins Triggered . | . . . . . Exploration Rate (%) 43 | 5 75 13 72 52 Regions Visited 4 Branch Regions 3 Pre-discovered Areas 1 | . . . 1 . Known Exits Taken . | . . . . . Unknown Exits Taken 4 | 1 1 1 1 . Scrap Searched . | . . . . . Spaces Dug . | . . . . . Terrain Destroyed . | . . . . . Melee . | . . . . . Projectile . | . . . . . AOE . | . . . . . Terrain Rammed . | . . . . . Walls Destroyed . | . . . . . Machines Disabled . | . . . . . Actions | -11 -10 -10 -10 -9 --------- Run | Yrd Mat Min Exi Min Total 1829 | 47 883 76 369 454 Wait 258 | . 236 . . 22 Move 1455 | 38 580 46 366 425 Hop . | . . . . . Pick Up 16 | 3 9 3 1 . Fast Attach 5 | 5 . . . . Attach 12 | 1 6 5 . . Detach . | . . . . . Swap 1 | . 1 . . . Drop 1 | . 1 . . . Fire 79 | . 50 22 . 7 Melee . | . . . . . Ram . | . . . . . Kick . | . . . . . Crush . | . . . . . Escape Stasis . | . . . . . Rewire 2 | . . . 2 . Trap . | . . . . . Miscellaneous . | . . . . . Route ------- -11/Scrapyard -10/Materials (discovered 4 exits: [*Mat x2] / [*Min x2]) -10/Mines -10/Exiles (discovered 2 exits: [*Min x2]) -9/Mines (discovered 1 exit: [*Mat]) History --------- Turn | Location | Event 7 | -11/Scrapyard | Discovered new exit (range 14) 65 | -11/Scrapyard | Entered Materials 311 | -10/Materials | Build established: Mutant 450 | -10/Materials | Discovered new exit (range 12) 464 | -10/Materials | Discovered new exit (range 15) 1058 | -10/Materials | Discovered new exit (range 12) 1132 | -10/Materials | Discovered new exit (range 15) 1195 | -10/Materials | Lost 3 parts (2n1w) 1348 | -10/Materials | Repaired Lrg. Storage Unit 1470 | -10/Materials | Entered Mines 1501 | -10/Mines | Core integrity fell below 50% 1569 | -10/Mines | Lost 4 parts (1p1n2w) 1611 | -10/Mines | Deemed a non-threat by the Exiles lab entrance 1611 | -10/Mines | Discovered new exit (range 5) 1621 | -10/Mines | Entered Exiles 1652 | -10/Exiles | Discovered new exit (range 14) 1715 | -10/Exiles | Met 8R-AWN 1745 | -10/Exiles | Met EX-HEX 1859 | -10/Exiles | Build established: Scavenger-Mutant 1863 | -10/Exiles | Met EX-DEC 1901 | -10/Exiles | Learned location of Zion (-6) 1952 | -10/Exiles | Met EX-BIN 1977 | -10/Exiles | Aligned with FarCom system 1979 | -10/Exiles | Given EX-Vault access code 2104 | -10/Exiles | Opened EX-Vault 2114 | -10/Exiles | Found XL Autogun Array 2156 | -10/Exiles | Warned to stay clear of 0b10 Research branches 2182 | -10/Exiles | Exiles lab attacked by MAIN.C 2295 | -10/Exiles | Discovered new exit (range 14) 2320 | -10/Exiles | Left Exiles lab with XL Autogun Array 2320 | -10/Exiles | Entered Mines 2364 | -9/Mines | Learned location of 2 exits from Materials 2589 | -9/Mines | Discovered new exit (range 9) 3150 | -9/Mines | Core integrity fell below 20% 3168 | -9/Mines | Core destroyed Last Messages --------------- 02322_ ZX-C33: "That was close. Too bad in all the rush we got split up from the others." 02337_ ZX-C33: "Oh no, it's like what happened to the Exiles when they were wandering homeless, only there's no Warlord to save us!" 02364_ Acquired derelict log, extracted data. Data stored: Materials exits (x2). 02416_ T-07 Excavator is excavating. 02435_ K-01 Serf collects debris. 02491_ T-07 Excavator is excavating. 02546_ K-01 Serf cleans the Pressure Siphon. 02589_ EXIT=FOUND 02662_ K-01 Serf cleans the Laser Drill. 03154_ Ion Engine severed. 03159_ Aluminum Leg severed. 03167_ Lgt. Assault Rifle destroyed. 03168_ Slammed into L-31 Rogue. 03168_ L-31 Rogue knocked back. 03168_ Lgt. Assault Rifle destroyed. 03168_ System corrupted by crushing effect (+3). 03168_ Destabilizing: Core damaged (-10). Map ----- +----------------------------------------------------+ | ???????????????????????????????????# #?? | | ????????????????????????????????????# ##? | | ????????????????????????????????????#### ## | | ??????????????? ?????????????????????## | | ????????????? ??????????????????????## | | ????????????? ??????????????????????# | | ???????????? #????????????????????## | | ???????????? #??????????????????## #### | | ????????????? #????????????????## ##??## | | ?????????????? #???????????????# ##????# | | ???????????????? ###?????###????# ##?????? | | ?????????????????# ##???## ##?## #??????? | | ?????????? ####### #???# ### ######## | | ????????? #???# | | ???????????? #???## | | ??????????????????# ##???## # #### | | ??????????????????### ##???## ## #??# | | ????????????????????## ##???## ### #??# | | ?????????????????????# #????# ##?# #?## | | ?????????????????????# ##???# #??# #?# | | ?????????????????????## #???# #??# ### | | ??????????????????????## #???## ##??# ## | | ???????????????????????# #### #????####??## | | ???????????????????????#l#??# #??????????# | | ???????????????????????#=#??# #?????????## | | ????????????????#####??#@#??# #???????### # | | ???????????????## #### #??# ######### """ ## | | ??########?????# ## #### """ ##? | | ??# #????## # g """ #?? | | ??# #?#### """ ########### ### """ #?? | | ??# ### """ ##????????# #?## #?? | | ??# ## """ ########## #??### ### | | ??# < ## #????### | | ??# ###########??????## ### | | ??# ## ## #?????????????????####?? | | ??# ## #### ##??????????????????????? | | ??########## ###??###???????????????????????? | | ???????????#######??????????????????????????????? | | ????????????????????????????????????????????????? | | | | | | | | | | | | | | | | | | | | | | | +----------------------------------------------------+ Best States ------------- Heat Dissipation 35 Energy Generation 10 Energy Capacity 250 Matter Stores 300 Matter Capacity 300 Sight Range 16 Terrain Scan Density 10 Evasion (%) 45 Recoil Reduction 2 Item Schematics ----------------- None Robot Schematics ------------------ None Fabricated ------------ Nothing Alien Tech Used ----------------- None Achievements -------------- None Challenges ------------ None Game ------ Seed ShadingIonBeam Manual? 0 Play Time 00:28:07 Cumulative 17.2 hours Start 2025.01.19 @ 00:27:17 End 2025.01.19 @ 01:05:41 Sessions 1 Manual Loads 0 Difficulty Rogue Special Mode None Game No. 25 Rogue 25 Adventurer 0 Explorer 0 Win Type - Total 0 Types 0/0/0/0/0/0/0/0/0 Lore% 14 Gallery% 18 Achievement% 16 Wizard Run 0 Options --------- Layout 0 ASCII 0 Keyboard 0 Movement Mouse Keybinds 0 Fullscreen 1 Font 24/Smallcaps Map View 76x50 Zoom Use 0% Tactical HUD 1 Map Filters NONE Filters NONE Steam 1 RUN: b0bc2ef5-a823-4f48-be6f-ee8190d5ea2f